Department family,Entity,Date,Expense type,Expense area,Supplier,Transaction number,Amount,Description,
MOJ,GFSL,05/02/20,Agency Staff,FM DELIVERY,HAYS SPECIALIST RECRUITMENT LTD-2WM,1010290818,"343,490.04",Agency staff ,
MOJ,GFSL,05/02/20,FM Services & Projects,FM DELIVERY,DELRON SERVICES LTD,1006024,"112,582.80",Facilities management and property maintenance,
MOJ,GFSL,05/02/20,FM Services & Projects,FM DELIVERY,GAME ENGINEERING LTD,4704,"39,228.25",Facilities management and property maintenance,
MOJ,GFSL,05/02/20,FM Services & Projects,FM DELIVERY,PMA (SERVICES) LTD,00092/PM/GFSL//SECURE,"51,346.28",Facilities management and property maintenance,
MOJ,GFSL,05/02/20,IT ,FM DELIVERY,NAMOS SOLUTIONS LTD,10022,"192,000.00",Information technology costs,
MoJ,GFSL,10/02/20,Government Procurement Card,Expenses,NatWest,NatWest Onecard,"34,549.69",Settlement of Government Procurement Card spend,
MOJ,GFSL,12/02/20,Agency Staff,FM DELIVERY,FORTEL RAIL CONSTRUCTION LIMITED,CCL2464,"175,947.64",Agency staff ,
MOJ,GFSL,12/02/20,Agency Staff,FM DELIVERY,HAYS SPECIALIST RECRUITMENT LTD-2WM,1010301843,"162,969.70",Agency staff ,
MOJ,GFSL,12/02/20,FM Services & Projects,FM DELIVERY,BINNS FENCING LTD,6386,"65,312.15",Facilities management and property maintenance,
MOJ,GFSL,12/02/20,FM Services & Projects,FM DELIVERY,BJF CONNECTIONS LTD,1016462,"66,696.00",Facilities management and property maintenance,
MOJ,GFSL,12/02/20,FM Services & Projects,FM DELIVERY,COLT INTERNATIONAL LTD,20121306,"62,450.40",Facilities management and property maintenance,
MOJ,GFSL,12/02/20,FM Services & Projects,FM DELIVERY,LOGIC CONTRACT SERVICES LTD,LCS1522,"26,080.21",Facilities management and property maintenance,
MOJ,GFSL,12/02/20,FM Services & Projects,FM DELIVERY,OPTIONS ELECTRICAL SERVICES LTD,6154,"33,946.08",Facilities management and property maintenance,
MOJ,GFSL,12/02/20,FM Services & Projects,FM DELIVERY,PMA (SERVICES) LTD,00102/PM/GFSL//X5SHOW,"51,094.34",Facilities management and property maintenance,
MOJ,GFSL,12/02/20,FM Services & Projects,FM DELIVERY,PMA (SERVICES) LTD,00103/PM/GFSL//SHWRS,"93,797.62",Facilities management and property maintenance,
MOJ,GFSL,12/02/20,FM Services & Projects,FM DELIVERY,PMA (SERVICES) LTD,00110/PM/GFSL//SHWR,"30,161.57",Facilities management and property maintenance,
MOJ,GFSL,12/02/20,FM Services & Projects,FM DELIVERY,PROTEC FIRE DETECTION PLC,OP/I824112,"49,172.40",Facilities management and property maintenance,
MOJ,GFSL,12/02/20,FM Services & Projects,FM DELIVERY,REXEL UK LTD,441157516,"72,007.20",Facilities management and property maintenance,
MOJ,GFSL,19/02/20,Agency Staff,FM DELIVERY,FORTEL RAIL CONSTRUCTION LIMITED,CCL2521,"65,721.82",Agency staff ,
MOJ,GFSL,19/02/20,Agency Staff,FM DELIVERY,FORTEL RAIL CONSTRUCTION LIMITED,CCL2536,"82,742.35",Agency staff ,
MOJ,GFSL,19/02/20,Agency Staff,FM DELIVERY,HAYS SPECIALIST RECRUITMENT LTD-2WM,1010318010,"216,938.57",Agency staff ,
MOJ,GFSL,19/02/20,Agency Staff,FM DELIVERY,HAYS SPECIALIST RECRUITMENT LTD-2WM,1010334175,"338,773.20",Agency staff ,
MOJ,GFSL,19/02/20,Agency Staff,FM DELIVERY,CLOSE UK LTD,9208,"37,459.20",Agency staff    ,
MOJ,GFSL,19/02/20,FM Services & Projects,FM DELIVERY,LABRUM ENGINEERING,9111,"40,164.00",Facilities management and property maintenance,
MOJ,GFSL,19/02/20,FM Project Delivery,FM DELIVERY,METRIC ENGINEERING MANAGEMENT LIMITED,INV-1154,"43,710.00",Facilities management and property maintenance,
MOJ,GFSL,19/02/20,FM Services & Projects,FM DELIVERY,RAVENSTONE CENTRAL LTD,225520,"28,920.00",Facilities management and property maintenance,
MOJ,GFSL,19/02/20,FM Services & Projects,FM DELIVERY,RAVENSTONE CENTRAL LTD,225561,"28,920.00",Facilities management and property maintenance,
MOJ,GFSL,27/02/20,FM Services & Projects,FM DELIVERY,B&R BARS LTD,B3568,"33,228.00",Facilities management and property maintenance,
MOJ,GFSL,27/02/20,FM Services & Projects,FM DELIVERY,COPEMAN CONSTRUCTION SERVICES LTD,S1-192,"38,885.99",Facilities management and property maintenance,
MOJ,GFSL,27/02/20,FM Services & Projects,FM DELIVERY,DAVID R WHITE BUILDING SERVICES LTD,DRW15246,"49,381.27",Facilities management and property maintenance,
MOJ,GFSL,27/02/20,FM Services & Projects,FM DELIVERY,DAVID R WHITE BUILDING SERVICES LTD,DRW15287,"36,000.00",Facilities management and property maintenance,
MOJ,GFSL,27/02/20,FM Services & Projects,FM DELIVERY,DELRON SERVICES LTD,1005979,"78,453.60",Facilities management and property maintenance,
MOJ,GFSL,27/02/20,FM Services & Projects,FM DELIVERY,GAME ENGINEERING LTD,4887,"231,756.00",Facilities management and property maintenance,
MOJ,GFSL,27/02/20,Equipment Hire,FM DELIVERY,GASWAY SERVICES LTD,204791,"30,624.00",Facilities management and property maintenance,
MOJ,GFSL,27/02/20,FM Services & Projects,FM DELIVERY,KRONOS THREAT MANAGEMENT LTD,SI-2075,"44,100.00",Facilities management and property maintenance,
MOJ,GFSL,27/02/20,FM Services & Projects,FM DELIVERY,KRONOS THREAT MANAGEMENT LTD,SI-2086,"36,000.00",Facilities management and property maintenance,
MOJ,GFSL,27/02/20,FM Services & Projects,FM DELIVERY,LOGIC CONTRACT SERVICES LTD,DUPE:LCS1500,"66,435.46",Facilities management and property maintenance,
MOJ,GFSL,27/02/20,FM Services & Projects,FM DELIVERY,LOGIC CONTRACT SERVICES LTD,LCS1500DUP,"39,871.03",Facilities management and property maintenance,
MOJ,GFSL,27/02/20,FM Services & Projects,FM DELIVERY,PMA (SERVICES) LTD,00114/PM/GFSL//SAFE,"62,880.00",Facilities management and property maintenance,
MOJ,GFSL,27/02/20,FM Services & Projects,FM DELIVERY,RAVENSTONE CENTRAL LTD,225587,"28,920.00",Facilities management and property maintenance,
MOJ,GFSL,27/02/20,FM Services & Projects,FM DELIVERY,RAVENSTONE CENTRAL LTD,225588,"28,920.00",Facilities management and property maintenance,
MOJ,GFSL,27/02/20,FM Services & Projects,FM DELIVERY,RELIANCE HIGH TECH LTD,CSINV0007607,"65,880.00",Facilities management and property maintenance,
MOJ,GFSL,27/02/20,FM Services & Projects,FM DELIVERY,RENTOKIL INITIAL UK LTD,21147826,"28,201.70",Facilities management and property maintenance,
MOJ,GFSL,27/02/20,FM Services & Projects,FM DELIVERY,UK POWER NETWORKS (OPERATIONS) LTD,92024462,"103,867.46",Facilities management and property maintenance,
MOJ,GFSL,27/02/20,FM Services & Projects,FM DELIVERY,YORKSHIRE DIESEL POWER LTD,13354,"31,971.42",Facilities management and property maintenance,
MOJ,GFSL,27/02/20,Travel,FM DELIVERY,CORPORATE TRAVEL MANAGEMENT (NORTH) LTD.,10828,"28,523.45",Staff travel costs,
